Cogmind - Beta 13 @@@ ROGUE MODE // 2024.06.03 @ 16:00:28 Player: wojo Result: Destroyed by KH-7WO(R) with Subdweller Shrapnel Launcher Performance ------------- Evolutions (0) 0 Regions Visited (2) 400 Robots Destroyed (27) 135 Value Destroyed (789) 789 Prototype IDs (0) 0 Alien Tech Used (0) 0 Bonus (0) 0 TOTAL SCORE: 1324 Bonus ------- None Cogmind --------- Core Integrity 0/250 Matter 33/300 Energy 200/200 System Corruption 2% Temperature Cool (0) Movement Treading (160) Location -10/Subcaves Parts ------- > --- POWER (1) -------- Subdweller Power Source > --- PROPULSION (2) --- Spiked Treads > --- UTILITY (2) ------ Improved Terrain Scanner Terrain Scan Processor > --- WEAPON (2) ------- Light Assault Rifle Battle Cannon > --- INVENTORY (5) ---- Subdweller Optics Signal Interpreter Targeting Computer Subdweller Shrapnel Launcher Mining Claw Peak State ------------ > --- POWER ------------ Subdweller Power Source > --- PROPULSION ------- Light Treads Spiked Treads > --- UTILITY ---------- Improved Terrain Scanner Terrain Scan Processor > --- WEAPON ----------- Battle Cannon Subdweller Shrapnel Launcher > --- INVENTORY -------- Subdweller Optics Signal Interpreter Targeting Computer Light Assault Rifle Mining Claw [Rating: 14] Favorites ----------- Power Ion Engine Engine Ion Engine Propulsion Light Treads Treads Light Treads Utility Improved Terrain Scanner Device Improved Terrain Scanner Storage Small Storage Unit Processor Terrain Scan Processor Weapon Light Assault Rifle Energy Cannon Beam Cannon Ballistic Gun Light Assault Rifle Ballistic Cannon Battle Cannon Launcher Subdweller Shrapnel Launcher Slashing Weapon Mining Claw Build | -11 -10 -10 ------- Run | Yrd Mat Sub Slots Evolved . | . . . Power . | . . . Propulsion . | . . . Utility . | . . . Weapon . | . . . Parts Attached 22 | 7 8 7 Power 3 | 1 1 1 Engine 3 | 1 1 1 Core . | . . . Reactor . | . . . Propulsion 6 | 2 2 2 Treads 6 | 2 2 2 Leg . | . . . Wheel . | . . . Hover . | . . . Flight . | . . . Utility 3 | 2 1 . Device 1 | 1 . . Storage 1 | 1 . . Processor 1 | . 1 . Hackware . | . . . Protection . | . . . Artifact . | . . . Weapon 10 | 2 4 4 Energy Gun . | . . . Energy Cannon 2 | . 1 1 Ballistic Gun 4 | 2 1 1 Ballistic Cannon 1 | . . 1 Launcher 1 | . . 1 Special Weapon . | . . . Impact Weapon . | . . . Slashing Weapon 2 | . 2 . Piercing Weapon . | . . . Special Melee Weapon . | . . . Unidentified Prototypes . | . . . Parts Lost 3 | . 1 2 Power 2 | . 1 1 Propulsion 1 | . . 1 Utility . | . . . Weapon . | . . . Highest Loss Streak 1 | . 1 1 To Critical Strikes . | . . . Average Slot Usage (%) 98 | . 99 97 Engine 13 | . 13 11 Treads 27 | . 28 27 Device 14 | . 14 14 Storage 2 | . 4 . Processor 11 | . 9 14 Energy Cannon 7 | . 12 1 Ballistic Gun 11 | . 13 9 Ballistic Cannon 4 | . . 11 Launcher 1 | . . 4 Slashing Weapon 1 | . 2 . Naked Turns . | . . . Heaviest Build 17 | 11 15 17 Greatest Support 40 | 40 40 40 Greatest Overweight (x) 1 | 1 . . Average Overweight (x) . | . . . Largest Inventory Capacity 8 | 8 8 5 Average Capacity 5 | 6 5 5 Most Carried 8 | 1 8 5 Average Carried 5 | . 5 5 Final Capacity 8 | 8 5 5 Final Carried 5 | 1 5 5 Class Distribution -------------------- 100% | Mutant Dominant Class ---------------- Mutant | -10/Materials Mutant | -10/Subcaves Resources | -11 -10 -10 ----------- Run | Yrd Mat Sub Matter Collected 714 | 247 191 276 Remotely . | . . . Salvage Created 766 | 27 506 233 Parts 53 | 5 31 17 Haulers Intercepted 1 | . 1 . Recyclers Shooed . | . . . Parts Field Recycled . | . . . Retrieved Matter . | . . . Parts Self-Destructed 7 | . . 7 Prevented . | . . . Kills | -11 -10 -10 ------- Run | Yrd Mat Sub Combat Hostiles Destroyed 21 | . 12 9 Guns 3 | . 2 1 Cannons 12 | . 9 3 AOE 5 | . . 5 Classes Destroyed 10 | 1 7 2 Builder 1 | . 1 . Tunneler 1 | 1 . . Hauler 1 | . 1 . Operator 1 | . 1 . Watcher 2 | . 2 . Swarmer 3 | . 3 . Grunt 9 | . 7 2 Sentry 1 | . . 1 Artisan 1 | . . 1 Subdweller 8 | . 2 6 Best Kill Streak 5 | 1 5 3 Combat Bots Only 4 | . 4 3 Max Kills in Single Turn 1 | 1 1 1 Gunslinging . | . . . Exploded 1 | . . 1 Melee . | . . . Uniques/NPCs Destroyed . | . . . Combat | -11 -10 -10 -------- Run | Yrd Mat Sub Hostile Shots Fired 131 | . 80 51 Missed 45 | . 28 17 Damage Taken 1310 | . 591 719 Core 262 | . 70 192 Absorbed by Shields . | . . . Core Remaining (%) 100 | 100 . . Volleys Fired 92 | 1 51 40 Largest 2 | 2 2 2 Hottest 80 | 40 80 80 Shots Fired 178 | 2 101 75 Gun 77 | 2 50 25 Cannon 87 | . 51 36 Launcher 14 | . . 14 Special . | . . . Kinetic 119 | 2 50 67 Thermal 59 | . 51 8 Explosive . | . . . Electromagnetic . | . . . Robot Hit Streak 20 | 1 8 20 Robot Miss Streak 6 | . 6 2 Penetration Max . | . . . Secondary Targets . | . . . Shots Hit Robots 104 | 1 50 53 Core Hits 46 | 1 28 17 Critical Kills 1 | . 1 . Critical Parts Destroyed . | . . . Critical Strikes 1 | . 1 . Meltdown 1 | . 1 . Melee Attacks 7 | . 7 . Impact . | . . . Slashing 7 | . 7 . Piercing . | . . . Sneak Attacks 1 | . 1 . Combat Hostiles . | . . . Follow-up Attacks . | . . . Damage Inflicted 2048 | 10 778 1260 Guns 297 | 10 173 114 Cannons 1016 | . 559 457 Explosions 689 | . . 689 Melee 46 | . 46 . Ramming . | . . . Kinetic 1340 | 10 173 1157 Thermal 662 | . 559 103 Explosive . | . . . Electromagnetic . | . . . Impact . | . . . Slashing 46 | . 46 . Piercing . | . . . Highest Corruption 2 | . 2 2 Average Corruption 2 | . 2 2 Corruption Purged . | . . . Corruption Blocked . | . . . Effects 31 | . 18 13 Message Errors 4 | . 2 2 Matter Fused 11 | . 6 5 Heat Flow Errors 7 | . 3 4 Energy Discharges 3 | . 2 1 Data Loss (minor) 4 | . 4 . Misfires 1 | . . 1 Alerts 1 | . 1 . Overload Shots . | . . . Overflow Damage . | . . . Projectiles . | . . . Explosions . | . . . Melee . | . . . Knockbacks 5 | . . 5 Impact . | . . . Kinetic 5 | . . 5 Secondary . | . . . Self-Inflicted Damage . | . . . Shots . | . . . Rammed . | . . . Targets Rammed . | . . . Kicked . | . . . Crushed . | . . . Highest Temperature 273 | . 273 208 Average Temperature 92 | . 94 73 Received Heat Transfer 306 | . 141 165 Effects 2 | . 2 . Interference 2 | . 2 . Siege Activations . | . . . Robots Corrupted . | . . . Combat Hostiles . | . . . Parts Fried . | . . . Impact Corruptions . | . . . Robots Melted 1 | . 1 . Combat Hostiles 1 | . 1 . Parts Melted 5 | . 4 1 Heat Transferred 1406 | . 1184 222 Parts Sabotaged . | . . . Parts Stolen . | . . . Parts Stripped . | . . . Power Chain Reactions . | . . . Alert | -11 -10 -10 ------- Run | Yrd Mat Sub Peak Influence 182 | 5 182 . Initial 3 | . 3 . Average 25 | 2 26 . Maximum Alert Level . | . . . Low Security (%) 100 | 100 100 . Level 1 . | . . . Level 2 . | . . . Level 3 . | . . . Level 4 . | . . . Level 5 . | . . . High Security . | . . . Max Security . | . . . Squads Dispatched 2 | . 2 . Investigation 1 | . 1 . Extermination . | . . . Reinforcement 1 | . 1 . Assault . | . . . Garrison . | . . . Intercept . | . . . Searches Triggered . | . . . Construction Impeded . | . . . Haulers Reinforced . | . . . Active Scanning Responses . | . . . Cargo Convoy Interrupts . | . . . Stealth | -11 -10 -10 --------- Run | Yrd Mat Sub Distress Signals 1 | . 1 . Communications Jammed . | . . . Distress Signals . | . . . Times Spotted 27 | . 16 11 Peak Tracking Total 5 | . 5 2 Tactical Retreats . | . . . Traps | -11 -10 -10 ------- Run | Yrd Mat Sub Traps Triggered 2 | . 2 . Indirectly . | . . . Trap Hack Attempts . | . . . Triggered . | . . . Disarmed . | . . . Reprogrammed . | . . . Reused . | . . . Traps Extracted . | . . . Installed . | . . . Triggered . | . . . Machines | -11 -10 -10 ---------- Run | Yrd Mat Sub Machines Disabled . | . . . Max in Single Turn . | . . . Machines Repaired . | . . . Machines Dismantled . | . . . Machines Sabotaged . | . . . Overloaded Fab Kills . | . . . Hacking | -11 -10 -10 --------- Run | Yrd Mat Sub Machines Accessed 5 | . 5 . Terminals 3 | . 3 . Fabricators . | . . . Repair Stations . | . . . Recycling Units 2 | . 2 . Scanalyzers . | . . . Garrison Access . | . . . Total Hacks 10 | . 10 . Successful 6 | . 6 . Failed 4 | . 4 . Catastrophic 1 | . 1 . Database Lockouts . | . . . Manual . | . . . Terminals 6 | . 6 . Fabricators . | . . . Repair Stations . | . . . Recycling Units 4 | . 4 . Scanalyzers . | . . . Garrison Access . | . . . Terminal Hacks 4 | . 4 . Robot Analysis 1 | . 1 . Emergency Access Points 1 | . 1 . Locate Traps 1 | . 1 . Hauler Manifests 1 | . 1 . Fabricator Hacks . | . . . Repair Station Hacks . | . . . Recycling Unit Hacks 2 | . 2 . Report Inventory 2 | . 2 . Scanalyzer . | . . . Garrison Access Hacks . | . . . Unauthorized Hacks . | . . . Terminals . | . . . Fabricators . | . . . Repair Stations . | . . . Recycling Units . | . . . Scanalyzers . | . . . Garrison Access . | . . . Data Cores Recovered . | . . . Used . | . . . Hacking Detections 4 | . 4 . Full Trace Events 1 | . 1 . Feedback Events . | . . . Feedback Blocked . | . . . Robot Schematics Acquired . | . . . Robots Built . | . . . Authchips . | . . . Time . | . . . Total Robot Build Rating . | . . . Part Schematics Acquired . | . . . Parts Built . | . . . Authchips . | . . . Time . | . . . Total Part Build Rating . | . . . Parts Repaired . | . . . Time . | . . . Parts Recycled . | . . . Recycled Matter . | . . . Retrieved Matter . | . . . Retrieved Components . | . . . Parts Scanalyzed . | . . . Part Schematics Acquired . | . . . Parts Damaged . | . . . Bothacking | -11 -10 -10 ------------ Run | Yrd Mat Sub Used RIF Installer . | . . . Robots Hacked . | . . . Non-combat . | . . . Combat . | . . . Robot Hacks Applied . | . . . Relay Couplers Released . | . . . Fabnet Peak Effective % . | . . . Robots Rewired . | . . . Allies Hacked . | . . . Hacks Repelled . | . . . Allies | -11 -10 -10 -------- Run | Yrd Mat Sub Total Allies . | . . . Largest Group . | . . . Highest-Rated Group . | . . . Highest-Rated Ally . | . . . Total Orders . | . . . Ally Attacks . | . . . Total Damage . | . . . Kills . | . . . Allies Corrupted . | . . . Allies Melted . | . . . Intel | -11 -10 -10 ------- Run | Yrd Mat Sub Robot Analysis Total 1 | . 1 . Derelict Logs Recovered . | . . . Drone Launches . | . . . Drone Recoveries . | . . . Exploration | -11 -10 -10 ------------- Run | Yrd Mat Sub Turns Passed 3682 | 96 2024 1562 Spaces Moved 2056 | 59 1105 892 Core 14 | 14 . . Treads 2042 | 45 1105 892 Legs . | . . . Wheels . | . . . Hover . | . . . Flight . | . . . Fastest Speed 50 | 50 160 160 Average Speed 159 | 141 160 160 Slowest Speed 160 | 160 160 160 Overloaded Moves . | . . . Propulsion Burnouts . | . . . Robots Hopped . | . . . Cave-ins Triggered . | . . . Exploration Rate (%) 55 | 4 99 62 Regions Visited 2 Branch Regions 1 Pre-discovered Areas . | . . . Known Exits Taken . | . . . Unknown Exits Taken 2 | 1 1 . Scrap Searched 1 | . . 1 Spaces Dug 3 | . 3 . Terrain Destroyed 140 | . 3 137 Melee 3 | . 3 . Projectile 1 | . . 1 AOE 136 | . . 136 Terrain Rammed . | . . . Walls Destroyed . | . . . Machines Disabled . | . . . Actions | -11 -10 -10 --------- Run | Yrd Mat Sub Total 2283 | 67 1257 959 Wait 81 | . 69 12 Move 2054 | 58 1104 892 Hop . | . . . Pick Up 14 | 1 11 2 Fast Attach 11 | 7 . 4 Attach 2 | . 2 . Detach 2 | . 1 1 Swap 9 | . 6 3 Drop 11 | . 6 5 Fire 92 | 1 51 40 Melee 7 | . 7 . Ram . | . . . Kick . | . . . Crush . | . . . Escape Stasis . | . . . Rewire . | . . . Trap . | . . . Miscellaneous . | . . . Route ------- -11/Scrapyard -10/Materials (discovered 5 exits: [*Mat x3] / [*Min] / [*Sub]) -10/Subcaves (discovered 1 exit: [*Mat]) History --------- Turn | Location | Event 21 | -11/Scrapyard | Discovered new exit (range 15) 97 | -11/Scrapyard | Entered Materials 314 | -10/Materials | Build established: Mutant 409 | -10/Materials | Discovered new exit (range 11) 597 | -10/Materials | Derelicts attacked the area 710 | -10/Materials | Discovered new exit (range 12) 847 | -10/Materials | Discovered new exit (range 15) 1160 | -10/Materials | Discovered new exit (range 15) 1487 | -10/Materials | Discovered new exit (range 16) 2121 | -10/Materials | Entered Subcaves 2251 | -10/Subcaves | Core integrity fell below 50% 2365 | -10/Subcaves | Discovered new exit (range 8) 2383 | -10/Subcaves | Shifting Twisted Machinery released Mak. Thermal Plating 2831 | -10/Subcaves | Shifting Twisted Machinery released Unknown Treads 3671 | -10/Subcaves | Ambushed by Subdweller buried in earth 3681 | -10/Subcaves | Ambushed by Subdweller buried in earth 3683 | -10/Subcaves | Core integrity fell below 20% 3683 | -10/Subcaves | Destroyed by KH-7WO(R) with Subdweller Shrapnel Launcher Last Messages --------------- Battle Cannon. 03433_ System corrupted: Battle Cannon misfires. 03540_ 57-D2J(u) deconstructs Twisted Machinery. 03604_ 57-D2J(u) cries out in pain. 03604_ 57-D2J(u) destroyed. 03610_ Acquired 5 matter. 03611_ Subatomizers dissect the Multitool. 03613_ Acquired 5 matter. 03625_ Subatomizers dissect the Multitool. 03629_ KH-7WO(R): "SUBHATE!" 03639_ Subatomizers dissect the Multitool. 03669_ Lgt. Treads destroyed. 03670_ KH-7WO(R) knocked back. 03672_ OZ-OZI(R): "ARGHSUB!" 03674_ System corrupted: Heat flow error (+199). 03676_ Subatomizers dissect the Multitool. 03680_ OZ-OZI(R) knocked back. 03681_ 83-6QH(R) destroyed. 03682_ OZ-OZI(R) knocked back. Map ----- +----------------------------------------------------+ | | | | | | | | | ?????????????????????????????????????????????????? | | ?????????????????????????????????????????????????? | | ?????????????????????????????????????????????????? | | ???????????????????????#?????????????????????????? | | ?????????????????????????????????????????????????? | | ????#??#???#?????????????????????????????????????? | | ????????????????#???????#????????????????????????? | | #????????????????#?#?#?????#?????##??????????????? | | ?#???##????#??????????#??###??##?#???????????????? | | ???????????#?#?##???#??#???#????##?#?????????????? | | ?????##??????#????#???????#??##???#??????????????? | | ?????##??#?#?##?????##??#?###???#???#????????????? | | ##??#??????###?##?##?????#?##?####?###???????????? | | ##???#?????#?#???##?#????###??##?????#???????????? | | ##?#??#########?#?#?###?#########????????????????? | | ############## ??#?###?## ## ####???#???????????? | | ?##?## ### #?####### ##??##??????????? | | ?#### ## ####;#; ##?????????????? | | #### ##?# ####???????????? | | #?#??# #### "" % #??#???????????? | | ###### "" "" R #????#?????????? | | ## "" " @ #???#?#????????? | | #""### ## !% ####??#????????? | | # ## ####### #; #????#?????????? | | # ###?######## #; ; ###??#???????????? | | #??######### #;# ####?#####?#????????? | | ######## = ""R % #######??????#??????????? | | # ## | """###?#??###???#????????????? | | % ####?##?#?###??#???????????? | | ## #???###?#?##??#?#??????????? | | # ### # # #######?##?###??#?????????????? | | ###?############ ##???#???######????????????????? | | ###?#?#???##?#?###??##?####??####???????????????? | | ##??####????####??#####??#?###??????????????????? | | ##??#########?####?#?####?###????????????????????? | | ###########?##??#?#?#??###?#####?????????????????? | | ????################?####??##??##????????????????? | | ?##?##??#?#??###?##?##?#????#????#???????????????? | | ????#####???#???#?????#??##?##??#????????????????? | | ?##??????#?????###?##??#?#???#?#?????????????????? | | #?#?#????##?#????#??????###??????????????????????? | | ?????##???#?#?####??#???#????????????????????????? | | ??###????#???##??????#??#????????????????????????? | | ??#?????###?#???#?????##?????????????????????????? | | ?????#?#??????????##?????????????????????????????? | | ?????????????????#???????????????????????????????? | +----------------------------------------------------+ Best States ------------- Heat Dissipation 25 Energy Generation 15 Energy Capacity 250 Matter Stores 300 Matter Capacity 300 Sight Range 16 Terrain Scan Range 16 Terrain Scan Density 85 Evasion (%) 40 Recoil Reduction 2 Item Schematics ----------------- None Robot Schematics ------------------ None Fabricated ------------ Nothing Alien Tech Used ----------------- None Achievements -------------- None Challenges ------------ None Game ------ Seed HugeZhirovStreamer Manual? 0 Play Time 00:29:58 Cumulative 21.1 hours Start 2024.06.03 @ 15:10:34 End 2024.06.03 @ 16:00:28 Sessions 1 Manual Loads 0 Difficulty Rogue Special Mode None Game No. 36 Rogue 36 Adventurer 0 Explorer 0 Win Type - Total 0 Types 0/0/0/0/0/0/0/0/0 Lore% 12 Gallery% 25 Achievement% 17 Wizard Run 0 Options --------- Layout 1 ASCII 0 Keyboard 0 Movement Arrows Keybinds 0 Fullscreen 1 Font 16/Terminus Map View 50x40 Zoom Use 0% Tactical HUD 1 Map Filters NONE Filters NONE Steam SD RUN: 321873c2-2e6b-4541-a654-5f59fb901d15